Cogmind - Beta 10 @@@ ROGUE MODE // 2020.09.19 @ 20:36:38 Player: Pimski Result: Destroyed by D-53 Grenadier with Mini Grenade Launcher Performance ------------- Evolutions (0) 0 Regions Visited (2) 400 Robots Destroyed (17) 85 Value Destroyed (302) 302 Prototype IDs (0) 0 Alien Tech Used (0) 0 Bonus (0) 0 TOTAL SCORE: 787 Bonus ------- None Cogmind --------- Core Integrity 0/250 Matter 290/300 Energy 125/125 System Corruption 0% Temperature Cool (0) Movement Rolling (120) Ox2 Location -10/Mines Parts ------- > --- POWER (1) -------- Light Ion Engine > --- PROPULSION (2) --- Light Treads Compact Wheel > --- UTILITY (2) ------ Large Storage Unit Large Storage Unit > --- WEAPON (2) ------- Light Assault Rifle Light Assault Rifle > --- INVENTORY (16) --- Light Ion Engine Light Ion Engine Light Ion Engine Light Treads Medium Storage Unit Medium Storage Unit Targeting Computer Heavy EM Pulse Gun Heavy EM Pulse Gun Heavy EM Pulse Gun Heavy EM Pulse Gun Light Assault Rifle Light Assault Rifle Light Assault Rifle Grenade Launcher Mining Claw Peak State ------------ > --- POWER ------------ Ion Engine > --- PROPULSION ------- Light Treads Light Treads > --- UTILITY ---------- Large Storage Unit Large Storage Unit > --- WEAPON ----------- Heavy EM Pulse Gun Light Assault Rifle > --- INVENTORY -------- Light Ion Engine Compact Wheel Medium Storage Unit Medium Storage Unit Heavy EM Pulse Gun Light Assault Rifle Light Assault Rifle Light Assault Rifle Light Assault Rifle Light Assault Rifle [Rating: 9] Favorites ----------- Power Ion Engine Engine Ion Engine Propulsion Light Treads Treads Light Treads Leg Aluminum Leg Wheel Compact Wheel Utility Large Storage Unit Storage Large Storage Unit Weapon Light Assault Rifle Energy Gun EM Pulse Gun Ballistic Gun Light Assault Rifle Build | -11 -10 -10 ------- Run | Scr Mat Min Slots Evolved . | . . . Power . | . . . Propulsion . | . . . Utility . | . . . Weapon . | . . . Parts Attached 14 | 1 12 1 Power 1 | . 1 . Engine 1 | . 1 . Core . | . . . Reactor . | . . . Propulsion 4 | . 3 1 Treads 3 | . 3 . Leg . | . . . Wheel 1 | . . 1 Hover . | . . . Flight . | . . . Utility 4 | 1 3 . Device . | . . . Storage 4 | 1 3 . Processor . | . . . Hackware . | . . . Protection . | . . . Artifact . | . . . Weapon 5 | . 5 . Energy Gun 1 | . 1 . Energy Cannon . | . . . Ballistic Gun 4 | . 4 . Ballistic Cannon . | . . . Launcher . | . . . Special Weapon . | . . . Impact Weapon . | . . . Slashing Weapon . | . . . Piercing Weapon . | . . . Special Melee Weapon . | . . . Unidentified Prototypes . | . . . Parts Lost 3 | . 3 . Power . | . . . Propulsion 1 | . 1 . Utility . | . . . Weapon 2 | . 2 . Highest Loss Streak 2 | . 2 . Average Slot Usage (%) 99 | . 99 100 Engine 14 | . 14 14 Treads 26 | . 26 27 Leg 1 | . 1 . Storage 28 | . 28 28 Energy Gun 3 | . 7 . Ballistic Gun 23 | . 20 28 Naked Turns . | . . . Heaviest Build 39 | 17 39 37 Greatest Support 40 | 20 40 40 Greatest Overweight (x) 2 | . . 2 Average Overweight (x) . | . . . Largest Inventory Capacity 16 | 8 16 16 Average Capacity 14 | 6 12 16 Most Carried 16 | 6 16 16 Average Carried 13 | 6 11 15 Final Capacity 16 | 8 16 16 Final Carried 16 | 6 16 16 Class Distribution -------------------- 100% | Mutant Dominant Class ---------------- Mutant | -10/Materials Mutant | -10/Mines Resources | -11 -10 -10 ----------- Run | Scr Mat Min Matter Collected 435 | 210 205 20 Remotely . | . . . Salvage Created 831 | 96 735 . Parts 45 | 2 43 . Haulers Intercepted 2 | . 2 . Recyclers Shooed 3 | . 3 . Parts Field Recycled . | . . . Retrieved Matter . | . . . Parts Self-Destructed . | . . . Prevented . | . . . Kills | -11 -10 -10 ------- Run | Scr Mat Min Combat Hostiles Destroyed 6 | . 6 . Guns 6 | . 6 . Classes Destroyed 6 | 1 5 . Worker 1 | . 1 . Builder 1 | . 1 . Hauler 2 | . 2 . Recycler 5 | 1 4 . Watcher 2 | . 2 . Grunt 6 | . 6 . Best Kill Streak 3 | 1 3 . Combat Bots Only 2 | . 2 . Max Kills in Single Turn 2 | 1 2 . Gunslinging 1 | . 1 . Exploded . | . . . Melee . | . . . Uniques/NPCs Destroyed . | . . . Combat | -11 -10 -10 -------- Run | Scr Mat Min Damage Taken 887 | . 655 232 Core 255 | . 92 163 Absorbed by Shields . | . . . Core Remaining (%) 100 | 100 . . Volleys Fired 80 | 5 75 . Largest 2 | 2 2 . Hottest 80 | 80 80 . Shots Fired 160 | 10 150 . Gun 160 | 10 150 . Cannon . | . . . Launcher . | . . . Special . | . . . Kinetic 119 | . 119 . Thermal . | . . . Explosive . | . . . Electromagnetic 41 | 10 31 . Robot Hit Streak 13 | 2 13 . Robot Miss Streak 4 | 1 4 . Penetration Max . | . . . Secondary Targets 1 | . 1 . Max Gunslinging Chain 1 | . 1 . Shots Hit Robots 105 | 7 98 . Core Hits 38 | 2 36 . Critical Hits 1 | . 1 . Critical Kills . | . . . Critical Parts Destroyed 1 | . 1 . Melee Attacks . | . . . Impact . | . . . Slashing . | . . . Piercing . | . . . Sneak Attacks . | . . . Combat Hostiles . | . . . Follow-up Attacks . | . . . Damage Inflicted 1103 | 139 964 . Guns 1027 | 95 932 . Cannons . | . . . Explosions 76 | 44 32 . Melee . | . . . Ramming . | . . . Kinetic 605 | . 605 . Thermal 76 | 44 32 . Explosive . | . . . Electromagnetic 422 | 95 327 . Impact . | . . . Slashing . | . . . Piercing . | . . . Highest Corruption . | . . . Average Corruption . | . . . Corruption Purged . | . . . Overload Shots . | . . . Overflow Damage 19 | 19 . . Projectiles . | . . . Explosions 19 | 19 . . Melee . | . . . Knockbacks . | . . . Impact . | . . . Kinetic . | . . . Secondary . | . . . Self-Inflicted Damage . | . . . Shots . | . . . Rammed . | . . . Targets Rammed . | . . . Kicked . | . . . Crushed . | . . . Highest Temperature 114 | 56 114 . Average Temperature 24 | 30 23 . Received Heat Transfer 405 | . 378 27 Siege Activations . | . . . Robots Corrupted . | . . . Combat Hostiles . | . . . Parts Fried 1 | . 1 . Impact Corruptions . | . . . Robots Melted . | . . . Combat Hostiles . | . . . Parts Melted . | . . . Heat Transferred 100 | 50 50 . Parts Sabotaged . | . . . Parts Stolen . | . . . Parts Stripped . | . . . Power Chain Reactions 2 | 1 1 . Missiles Intercepted . | . . . Alert | -11 -10 -10 ------- Run | Scr Mat Min Peak Influence 160 | 5 160 15 Initial 3 | . 3 3 Average 34 | 2 65 1 Maximum Alert Level . | . . . Low Security (%) 100 | 100 100 100 Level 1 . | . . . Level 2 . | . . . Level 3 . | . . . Level 4 . | . . . Level 5 . | . . . High Security . | . . . Max Security . | . . . Squads Dispatched 1 | . 1 . Investigation . | . . . Extermination . | . . . Reinforcement 1 | . 1 . Assault . | . . . Garrison . | . . . Intercept . | . . . Construction Impeded . | . . . Haulers Reinforced . | . . . Stealth | -11 -10 -10 --------- Run | Scr Mat Min Distress Signals 2 | . 2 . Communications Jammed . | . . . Distress Signals . | . . . Times Spotted 23 | . 19 4 Peak Tracking Total 4 | . 4 4 Tactical Retreats 3 | . 3 . Traps | -11 -10 -10 ------- Run | Scr Mat Min Traps Triggered . | . . . Indirectly . | . . . Trap Hack Attempts . | . . . Triggered . | . . . Disarmed . | . . . Reprogrammed . | . . . Reused . | . . . Traps Extracted . | . . . Installed . | . . . Triggered . | . . . Machines | -11 -10 -10 ---------- Run | Scr Mat Min Machines Disabled . | . . . Max in Single Turn . | . . . Machines Sabotaged . | . . . Garrisons Compromised . | . . . Overloaded Fab Kills . | . . . Fab Network Shutdowns . | . . . Hacking | -11 -10 -10 --------- Run | Scr Mat Min Machines Accessed 5 | . 5 . Terminals 5 | . 5 . Fabricators . | . . . Repair Stations . | . . . Recycling Units . | . . . Scanalyzers . | . . . Garrison Access . | . . . Total Hacks 13 | . 13 . Successful 5 | . 5 . Failed 7 | . 7 . Catastrophic . | . . . Database Lockouts 1 | . 1 . Manual 12 | . 12 . Terminals 13 | . 13 . Fabricators . | . . . Repair Stations . | . . . Recycling Units . | . . . Scanalyzers . | . . . Garrison Access . | . . . Terminal Hacks 2 | . 2 . Robot Analysis 1 | . 1 . Locate Traps 1 | . 1 . Fabricator Hacks . | . . . Repair Station Hacks . | . . . Recycling Unit Hacks . | . . . Scanalyzer . | . . . Garrison Access Hacks . | . . . Unauthorized Hacks 3 | . 3 . Terminals 3 | . 3 . Botnet 2 | . 2 . Disrupt 1 | . 1 . Fabricators . | . . . Repair Stations . | . . . Recycling Units . | . . . Scanalyzers . | . . . Garrison Access . | . . . Data Cores Recovered . | . . . Used . | . . . Hacking Detections 5 | . 5 . Full Trace Events . | . . . Feedback Events . | . . . Feedback Blocked . | . . . Robot Schematics Acquired . | . . . Robots Built . | . . . Matter . | . . . Time . | . . . Total Robot Build Rating . | . . . Part Schematics Acquired . | . . . Parts Built . | . . . Matter . | . . . Time . | . . . Total Part Build Rating . | . . . Parts Repaired . | . . . Time . | . . . Parts Recycled . | . . . Recycled Matter . | . . . Retrieved Matter . | . . . Retrieved Components . | . . . Parts Scanalyzed . | . . . Part Schematics Acquired . | . . . Parts Damaged . | . . . Bothacking | -11 -10 -10 ------------ Run | Scr Mat Min Used RIF Installer . | . . . Robots Hacked . | . . . Non-combat . | . . . Combat . | . . . Robot Hacks Applied . | . . . Relay Couplers Released . | . . . Robots Rewired . | . . . Allies Hacked . | . . . Hacks Repelled . | . . . Allies | -11 -10 -10 -------- Run | Scr Mat Min Total Allies . | . . . Largest Group . | . . . Highest-Rated Group . | . . . Highest-Rated Ally . | . . . Total Orders . | . . . Ally Attacks . | . . . Total Damage . | . . . Kills . | . . . Allies Corrupted . | . . . Allies Melted . | . . . Intel | -11 -10 -10 ------- Run | Scr Mat Min Robot Analysis Total 1 | . 1 . Derelict Logs Recovered . | . . . Drone Launches . | . . . Drone Recoveries . | . . . Exploration | -11 -10 -10 ------------- Run | Scr Mat Min Turns Passed 1643 | 30 857 756 Spaces Moved 534 | 12 370 152 Core . | . . . Treads 477 | . 328 149 Legs 54 | 12 42 . Wheels 3 | . . 3 Hover . | . . . Flight . | . . . Fastest Speed 120 | 120 120 120 Average Speed 155 | 120 155 159 Slowest Speed 160 | 120 160 160 Overloaded Moves . | . . . Propulsion Burnouts . | . . . Robots Hopped . | . . . Cave-ins Triggered . | . . . Exploration Rate (%) 22 | 2 50 15 Regions Visited 2 Branch Regions 1 Pre-discovered Areas . | . . . Known Exits Taken . | . . . Unknown Exits Taken 2 | 1 1 . Scrap Searched 1 | . . 1 Spaces Dug . | . . . Terrain Destroyed 5 | 2 3 . Melee . | . . . Projectile . | . . . AOE 5 | 2 3 . Terrain Rammed . | . . . Walls Destroyed . | . . . Machines Disabled . | . . . Actions | -11 -10 -10 --------- Run | Scr Mat Min Total 1213 | 17 530 666 Wait 554 | . 43 511 Move 532 | 11 369 152 Hop . | . . . Pick Up 21 | . 20 1 Fast Attach 1 | 1 . . Attach 7 | . 7 . Detach . | . . . Swap 6 | . 5 1 Drop 12 | . 11 1 Fire 80 | 5 75 . Melee . | . . . Ram . | . . . Kick . | . . . Crush . | . . . Escape Stasis . | . . . Rewire . | . . . Trap . | . . . Miscellaneous . | . . . Route ------- -11/Scrapyard -10/Materials -10/Mines History --------- Turn | Location | Event 10 | -11/Scrapyard | Discovered new exit (range 2) 31 | -11/Scrapyard | Entered Materials 301 | -10/Materials | Build established: Mutant 797 | -10/Materials | Central database locked down 869 | -10/Materials | Discovered new exit (range 7) 888 | -10/Materials | Entered Mines 969 | -10/Mines | Assembled infested the area 1638 | -10/Mines | Joined a pair of Derelicts in attacking an 0b10 outpost 1639 | -10/Mines | Core integrity fell below 50% 1644 | -10/Mines | Core integrity fell below 20% 1644 | -10/Mines | Destroyed by D-53 Grenadier with Mini Grenade Launcher Last Messages --------------- 00869_ EXIT=FOUND LOCATION=UNKNOWN GOAL=ESCAPE 00933_ Searching scrap... 00933_ Found Mining Claw. 00933_ Found 33 Matter. 00934_ Acquired 20 matter. 00937_ Dropped Lgt. Ion Engine. 00938_ Acquired Mining Claw. 00969_ ALERT: Infestation in the mines, dispatching Demolisher response squad. 01638_ A derelict emerges from the shadows: "We've had our eye on this brand new outpost for a little while, just waiting for an opportunity to strike. Need some help?" 01639_ 8G-88O(g) destroyed. 01639_ TN-M6Y(g) destroyed. 01639_ K-01 Serf destroyed. 01639_ U-05 Engineer builds a Wall. 01644_ The unstable cave ceiling collapses. 01644_ U-05 Engineer lays Concrete. Map ----- +----------------------------------------------------+ | ????# #???????????????????? | | ????# #???????????????????? | | ????### ####### #???????????????????? | | ??????# #?????###???????????????????? | | ??????# #???????????????????????????? | | ??????# #???????????????????????????? | | ??????# #???????????????????????????? | | ??????#*#???????????????????????????? | | ??????# #???????????????????????????? | | ??????#%#???????????????????????????? | | ??????# #???????????????????????????? | | ??????# #???????????????????????????? | | ??????# #???????????????????????????? | | ??????# #???????????????????????????? | | ??????# #???????????????????????????? | | ??????# #???????????????????????????? | | ??????# #?????######????????????????? | | ??????# #????##"YY"##?????#?????????? | | ?????## #????#![ !!#? # #?????????? | | ????## ###??#!! [# = # ##??????? | | ????# ##?# # *u# #??????? | | ???## ### ! ! #???????? | | ???# %=%! #???????? | | ???# % d %! #??????? | | ???## !%=d * ! ?????? | | ????## @ * =*! ??????? | | ?????## # ### =%= ??????? | | ??????# ##### #????% ???????? | | ??????# #????# #?????? ???????? | | ??????# #????## ##???????????????? | | ??????# #??????# |#????????????????? | | ??????# #???????!%#????????????????? | | ??????# #??????? !#????????????????? | | ??????# #??????? ????????????????? | | ??????# ???????? ???????????????? | | ??????# ???????? ??????????????? | | ??????# ????????? ?????????????? | | ??????? ????????????????????????????? | | ????????????????????????????????????? | | ????????????????????????????????????? | | ????????????????????????????????????? | | ????????????????????????????????????? | | ????????????????????????????????????? | | ????????????????????????????????????? | | ????????????????????????????????????? | | ????????????????????????????????????? | | ????????????????????????????????????? | | ????????????????????????????????????? | | ????????????????????????????????????? | | ????????????????????????????????????? | +----------------------------------------------------+ Best States ------------- Heat Dissipation 25 Energy Generation 10 Energy Capacity 250 Matter Stores 300 Matter Capacity 300 Sight Range 16 Terrain Scan Density 10 Evasion (%) 40 Recoil Reduction 2 Item Schematics ----------------- None Robot Schematics ------------------ None Fabricated ------------ Nothing Alien Tech Used ----------------- None Achievements -------------- None Challenges ------------ None Game ------ Seed TrapBombardmentFrame Manual? 0 Play Time 00:11:06 Cumulative 735.1 hours Start 2020.09.19 @ 20:26:58 End 2020.09.19 @ 20:36:38 Sessions 1 Manual Loads 0 Difficulty Rogue Special Mode None Game No. 473 Rogue 473 Adventurer 0 Explorer 0 Win Type - Total 110 Types 75/7/8/10/5/1/4/0/0 Lore% 95 Gallery% 94 Achievement% 81 Wizard Run 0 Options --------- ASCII 0 Keyboard 0 Movement Numpad Keybinds 0 Fullscreen 2 Font 18/SmallcapsGlow Map View 76x50 Tactical HUD 1 Map Filters NONE Filters NONE Steam 1 RUN: 7e3898e1-53a4-4c08-9f1f-33c0f197f31a